bitfinex-derivatives/quotes_BTCF0:USTF0_20241021
["timestamp","ask_amount","ask_price","bid_price","bid_amount"]
[1729530054714,0.02087976,67370.0,67369.0,0.10662616]
[1729530055423,0.02087976,67370.0,67369.0,0.10762616]
[1729530056231,0.01987976,67370.0,67369.0,0.11262616]
[1729530056711,0.01987976,67370.0,67369.0,0.10662616]
[1729530056915,0.01987976,67370.0,67369.0,0.11262616]
[1729530057516,0.01987976,67370.0,67369.0,0.10762616]
[1729530057725,0.01987976,67370.0,67369.0,0.11362616]
[1729530058923,0.01987976,67370.0,67369.0,0.15798442]
[1729530059121,0.01987976,67370.0,67369.0,0.15698442]
[1729530059521,0.01987976,67370.0,67369.0,0.03837516]
[1729530059922,0.07417976,67370.0,67369.0,0.03237516]
[1729530060315,0.14842976,67370.0,67369.0,0.03937516]
[1729530060535,1.11949976,67370.0,67363.0,0.02650882]
[1729530060827,1.11949976,67370.0,67356.0,0.04435826]
[1729530060828,0.074264,67358.0,67356.0,0.04435826]
[1729530061026,0.107,67357.0,67355.0,0.04435826]
[1729530061221,0.107,67357.0,67354.0,0.0465854]
[1729530061531,0.074267,67355.0,67354.0,0.02842831]
[1729530061941,0.435067,67355.0,67354.0,0.02842831]
[1729530063128,0.435067,67355.0,67354.0,0.02620117]
[1729530063333,0.3608,67355.0,67343.0,0.04435826]
[1729530063521,0.3608,67355.0,67342.0,0.40515826]
[1729530063522,0.074268,67354.0,67342.0,0.40515826]
[1729530063721,0.129368,67354.0,67346.0,0.074276]
[1729530064435,0.129368,67354.0,67347.0,0.074275]
[1729530064829,0.129368,67354.0,67348.0,0.074274]
[1729530065534,0.130368,67354.0,67348.0,0.074274]
[1729530066137,0.09319934,67354.0,67350.0,0.07396083]
[1729530066332,0.09419934,67354.0,67349.0,0.07396083]
[1729530066727,0.09419934,67354.0,67350.0,0.07396083]
[1729530066927,0.09419934,67354.0,67349.0,0.07396083]
[1729530067227,0.09319934,67354.0,67349.0,0.07396083]
[1729530067534,0.09419934,67354.0,67350.0,0.011]
[1729530067733,0.09319934,67354.0,67350.0,0.011]
[1729530067935,0.09319934,67354.0,67350.0,0.021]
[1729530068646,0.0561,67354.0,67353.0,0.074269]
[1729530069636,0.001,67354.0,67353.0,0.074269]
[1729530069941,0.001,67354.0,67353.0,0.082269]
[1729530070239,0.001,67354.0,67353.0,0.29616679]
[1729530070423,0.1661,67367.0,67366.0,0.074254]
[1729530070930,0.1661,67367.0,67366.0,0.11852968]
[1729530071130,0.1661,67367.0,67366.0,0.074254]
[1729530071932,0.1176,67367.0,67366.0,0.074254]
[1729530072134,0.1176,67367.0,67366.0,0.13328824]
[1729530072438,0.004,67367.0,67366.0,0.13328824]
[1729530072632,0.009,67367.0,67366.0,0.13328824]
[1729530073235,0.009,67367.0,67366.0,0.15969011]
[1729530073439,0.004,67367.0,67366.0,0.15969011]
[1729530073747,0.004,67367.0,67366.0,0.16269011]
[1729530073935,0.01734785,67371.0,67369.0,0.074251]
[1729530074440,0.37814785,67371.0,67369.0,0.074251]
[1729530074633,0.37890785,67371.0,67369.0,0.074251]
[1729530075742,0.02187976,67370.0,67369.0,0.074251]
[1729530076144,0.02287976,67370.0,67369.0,0.074251]
[1729530077146,0.02087976,67370.0,67369.0,0.074251]
[1729530077341,0.02287976,67370.0,67369.0,0.074251]
[1729530078244,0.02187976,67370.0,67369.0,0.074251]
[1729530078636,0.02087976,67370.0,67369.0,0.074251]
[1729530078838,0.02087976,67370.0,67369.0,0.077251]
[1729530079352,0.02287976,67370.0,67369.0,0.074251]
[1729530080039,0.02487976,67370.0,67369.0,0.074251]
[1729530082238,0.02287976,67370.0,67369.0,0.074251]
[1729530082434,0.02387976,67370.0,67369.0,0.074251]
[1729530082850,0.02287976,67370.0,67369.0,0.074251]
[1729530083037,0.02287976,67370.0,67369.0,0.077251]
[1729530083439,0.02287976,67370.0,67369.0,0.074251]
[1729530083635,0.01987976,67370.0,67369.0,0.078251]
[1729530083840,0.02187976,67370.0,67369.0,0.078251]
[1729530084642,0.01987976,67370.0,67369.0,0.081251]
[1729530085250,0.01987976,67370.0,67369.0,0.077251]
[1729530085639,0.01987976,67370.0,67369.0,0.080251]
[1729530085834,0.01987976,67370.0,67369.0,0.077251]
[1729530086047,0.01987976,67370.0,67369.0,0.081251]
[1729530087343,0.01987976,67370.0,67369.0,0.078251]
[1729530087545,0.01987976,67370.0,67369.0,0.081251]
[1729530090854,0.01987976,67370.0,67369.0,0.078251]
[1729530091055,0.01987976,67370.0,67369.0,0.081251]
[1729530092250,0.01987976,67370.0,67369.0,0.007]
[1729530093562,0.01987976,67370.0,67369.0,0.006]
[1729530094547,0.01987976,67370.0,67369.0,0.002]
[1729530094850,0.01987976,67370.0,67369.0,0.005]
[1729530098347,0.01987976,67370.0,67369.0,0.06403424]
[1729530099350,0.01987976,67370.0,67369.0,0.005]
[1729530099755,0.01987976,67370.0,67369.0,0.06402656]
[1729530099953,0.01987976,67370.0,67369.0,0.13827756]
[1729530100164,0.01987976,67370.0,67369.0,0.079251]
[1729530100464,0.01987976,67370.0,67369.0,0.13827756]
[1729530101048,0.01987976,67370.0,67369.0,0.079251]
[1729530101864,0.01987976,67370.0,67369.0,0.005]
[1729530102056,0.01987976,67370.0,67369.0,0.06404228]
[1729530103759,0.09412976,67370.0,67369.0,0.06404228]
[1729530103959,0.09412976,67370.0,67369.0,0.005]
[1729530103960,0.53944976,67370.0,67369.0,0.005]
[1729530104265,0.53944976,67370.0,67366.0,0.02640187]
[1729530104266,0.074253,67367.0,67366.0,0.02640187]
[1729530104474,0.074253,67367.0,67351.0,0.07427]
[1729530104475,0.05327415,67369.0,67351.0,0.07427]
[1729530104765,0.3608,67363.0,67361.0,0.07426]
[1729530104973,0.05327415,67362.0,67361.0,0.07426]
[1729530106456,0.05527415,67362.0,67361.0,0.09426]
[1729530108763,0.002,67362.0,67361.0,0.02]
[1729530109261,0.002,67362.0,67361.0,0.09426]
[1729530111063,0.1092,67366.0,67361.0,0.20745589]
[1729530111267,0.1092,67366.0,67362.0,0.07381072]
[1729530111468,0.1092,67366.0,67363.0,0.074258]
[1729530111672,0.1092,67366.0,67362.0,0.07381072]
[1729530111868,0.1092,67366.0,67365.0,0.074255]
[1729530112661,0.1102,67366.0,67365.0,0.074255]
[1729530113075,0.1092,67366.0,67365.0,0.080255]
[1729530113374,0.1102,67366.0,67365.0,0.087255]
[1729530116576,0.001,67366.0,67365.0,0.087255]
[1729530119579,0.075254,67366.0,67365.0,0.11374707]
[1729530119779,0.075254,67366.0,67365.0,0.03949207]
[1729530120485,0.074265,67356.0,67355.0,0.00222692]
[1729530121880,0.074265,67356.0,67355.0,0.01622692]
[1729530121881,0.075265,67356.0,67355.0,0.01622692]
[1729530122777,0.076265,67356.0,67355.0,0.03022692]
[1729530126071,0.076265,67356.0,67355.0,0.028]
[1729530126769,0.521665,67356.0,67355.0,0.028]
[1729530127973,0.520665,67356.0,67355.0,0.014]
[1729530128194,0.521665,67356.0,67355.0,0.023]
[1729530128571,0.520665,67356.0,67355.0,0.009]
[1729530128881,0.521665,67356.0,67355.0,0.017]
[1729530129267,0.882465,67356.0,67355.0,0.017]
[1729530130974,0.074279,67344.0,67333.0,0.00222758]
[1729530131177,0.3608,67344.0,67333.0,0.00222758]
[1729530131373,0.435089,67335.0,67333.0,0.02884621]
[1729530131679,0.074284,67339.0,67335.0,0.074288]
[1729530131868,0.074283,67340.0,67333.0,0.00222758]
[1729530132076,0.3608,67338.0,67337.0,0.074286]
[1729530133582,0.074288,67336.0,67334.0,0.025]
[1729530133984,0.074289,67335.0,67334.0,0.014]
[1729530134285,0.074289,67335.0,67334.0,0.12723828]
[1729530134494,0.074289,67335.0,67334.0,0.014]
[1729530134679,0.07429,67334.0,67333.0,0.00222758]
[1729530135279,0.07429,67334.0,67331.0,0.05890634]
[1729530135585,0.07429,67334.0,67325.0,0.07366431]
[1729530135586,0.074295,67329.0,67328.0,0.05890634]
[1729530135888,0.3608,67332.0,67327.0,0.05890634]
[1729530135889,0.074296,67328.0,67327.0,0.05890634]
[1729530136182,0.074299,67326.0,67325.0,0.05890634]
[1729530136380,0.48264,67328.0,67324.0,0.05888346]
[1729530136583,0.0743,67325.0,67324.0,0.05888346]
[1729530137089,0.4834,67328.0,67322.0,0.05888346]
[1729530137285,0.074301,67324.0,67322.0,0.05888346]
[1729530137590,0.074302,67323.0,67322.0,0.05888346]
[1729530137990,0.8064,67323.0,67322.0,0.04413987]
[1729530138288,0.074304,67321.0,67320.0,0.04413987]
[1729530138685,0.074305,67320.0,67319.0,0.04413987]
[1729530138875,0.074305,67320.0,67318.0,0.04413987]
[1729530139080,0.074306,67319.0,67318.0,0.04413987]
[1729530139592,0.12184,67320.0,67317.0,0.02720392]
[1729530139593,0.074307,67318.0,67317.0,0.02720392]
[1729530139790,0.074307,67318.0,67314.0,0.05888346]
[1729530139791,0.074307,67318.0,67316.0,0.074309]
[1729530139988,0.3608,67317.0,67316.0,0.074309]
[1729530141391,0.3618,67317.0,67316.0,0.076309]
[1729530141887,0.3628,67317.0,67316.0,0.084309]
[1729530142393,0.3608,67330.0,67329.0,0.074295]
[1729530142591,0.3608,67330.0,67321.0,0.074303]
[1729530142592,0.12184,67338.0,67336.0,0.074288]
[1729530142788,0.074284,67340.0,67336.0,0.074288]
[1729530143084,0.196124,67340.0,67336.0,0.074288]
[1729530143489,0.12184,67339.0,67336.0,0.074288]
[1729530143689,0.196124,67339.0,67336.0,0.074288]
[1729530143891,0.3608,67341.0,67336.0,0.074288]
[1729530144082,0.3608,67341.0,67336.0,0.076288]
[1729530144988,0.3608,67341.0,67340.0,0.074283]
[1729530146581,0.3618,67341.0,67340.0,0.074283]
[1729530147300,0.3638,67341.0,67340.0,0.074283]
[1729530147597,0.3638,67341.0,67340.0,0.078283]
[1729530147890,0.00076,67352.0,67351.0,0.074271]
[1729530148291,0.196108,67354.0,67344.0,0.1082]
[1729530148479,0.196108,67354.0,67353.0,0.074269]
[1729530148880,0.074268,67354.0,67353.0,0.074269]
[1729530149784,0.3608,67356.0,67355.0,0.074267]
[1729530150104,0.00222782,67358.0,67357.0,0.074264]
[1729530151592,0.00922782,67358.0,67357.0,0.075264]
[1729530152497,0.01522782,67358.0,67357.0,0.075264]
[1729530153090,0.00722782,67358.0,67357.0,0.075264]
[1729530153286,0.01322782,67358.0,67357.0,0.075264]
[1729530157396,0.08749082,67358.0,67357.0,0.001]
[1729530161002,0.08749082,67358.0,67357.0,0.075264]
[1729530176121,0.01322782,67358.0,67357.0,0.075264]
[1729530176420,0.3608,67366.0,67365.0,0.074256]
[1729530176818,0.3608,67366.0,67365.0,0.11842953]
[1729530177022,0.01987976,67370.0,67369.0,0.074251]
[1729530179810,0.01987976,67370.0,67369.0,0.076251]
[1729530180010,0.01987976,67370.0,67369.0,0.077251]
[1729530180711,0.01987976,67370.0,67369.0,0.076251]
[1729530180907,0.01987976,67370.0,67369.0,0.074251]
[1729530181112,0.01987976,67370.0,67369.0,0.076251]
[1729530182627,0.01987976,67370.0,67369.0,0.10283315]
[1729530183003,0.01987976,67370.0,67369.0,0.10183315]
[1729530186319,0.01987976,67370.0,67369.0,0.02758215]
[1729530186503,0.01987976,67370.0,67369.0,0.02658215]
[1729530186709,0.09612976,67370.0,67365.0,0.074255]
[1729530187210,0.09612976,67370.0,67366.0,0.074254]
[1729530187817,0.074252,67369.0,67366.0,0.074254]
[1729530188610,0.02187976,67370.0,67362.0,0.04414087]
[1729530188923,0.3608,67367.0,67361.0,0.02705577]
[1729530189112,0.3608,67367.0,67359.0,0.074261]
[1729530189113,0.074254,67366.0,67365.0,0.005]
[1729530189622,0.074254,67366.0,67365.0,0.002]
[1729530189821,0.074259,67363.0,67362.0,0.005]
[1729530190516,0.074259,67363.0,67360.0,0.07426]
[1729530191807,0.006,67366.0,67358.0,0.38695409]
[1729530192126,0.080255,67366.0,67362.0,0.074259]
[1729530192324,0.077255,67366.0,67362.0,0.074259]
[1729530192513,0.3608,67367.0,67362.0,0.074259]
[1729530192816,0.3608,67367.0,67358.0,0.38695409]
[1729530192817,0.074259,67362.0,67358.0,0.38695409]
[1729530193012,0.0509,67366.0,67358.0,0.38695409]
[1729530193212,0.074256,67365.0,67361.0,0.07426]
[1729530193813,0.074256,67365.0,67362.0,0.074259]
[1729530194926,0.0509,67366.0,67361.0,0.001]
[1729530194927,0.074259,67363.0,67361.0,0.001]
[1729530195315,0.074259,67363.0,67361.0,0.075259]
[1729530196117,0.0509,67366.0,67361.0,0.001]
[1729530196318,0.0509,67366.0,67359.0,0.074262]
[1729530196526,0.0509,67366.0,67358.0,0.38695409]
[1729530196527,0.074259,67363.0,67360.0,0.07426]
[1729530197017,0.074259,67363.0,67361.0,0.001]
[1729530197626,0.074259,67363.0,67360.0,0.07626]
[1729530197822,0.074259,67363.0,67360.0,0.07726]
[1729530198222,0.074259,67363.0,67361.0,0.07426]
[1729530199231,0.074259,67363.0,67361.0,0.07526]
[1729530200125,0.074259,67362.0,67361.0,0.001]
[1729530200328,0.074259,67362.0,67342.0,0.3608]
[1729530200329,0.3608,67363.0,67344.0,0.125078]
[1729530200630,0.074274,67349.0,67345.0,0.074277]
[1729530200835,0.074274,67349.0,67344.0,0.0508]
[1729530201030,0.074277,67346.0,67344.0,0.02686319]
[1729530201233,0.3608,67351.0,67344.0,0.05889804]
[1729530201429,0.3608,67351.0,67344.0,0.074279]
[1729530201430,0.074277,67346.0,67344.0,0.074279]
[1729530201731,0.074278,67345.0,67343.0,0.06112541]
[1729530202041,0.074278,67345.0,67343.0,0.13540541]
[1729530202334,0.074278,67345.0,67343.0,0.16269139]
[1729530202628,0.074275,67348.0,67343.0,0.16269139]
[1729530203333,0.001,67345.0,67343.0,0.17269139]
[1729530203937,0.001,67348.0,67343.0,0.09741139]
[1729530204127,0.074279,67344.0,67343.0,0.09741139]
[1729530204429,0.074279,67344.0,67343.0,0.07512541]
[1729530204617,0.074279,67344.0,67343.0,0.08412541]
[1729530205919,0.074279,67344.0,67343.0,0.08189804]
[1729530206227,0.075279,67344.0,67343.0,0.08289804]
[1729530206428,0.075279,67344.0,67343.0,0.06889804]
[1729530206622,0.075279,67344.0,67343.0,0.05989804]
[1729530206837,0.074279,67344.0,67343.0,0.06189804]
[1729530207531,0.074279,67344.0,67343.0,0.13617804]
[1729530207832,0.074279,67344.0,67343.0,0.06189804]
[1729530208537,0.074279,67344.0,67343.0,0.1899076]
[1729530209231,0.074279,67344.0,67343.0,0.15094431]
[1729530209426,0.074279,67344.0,67343.0,0.07728]
[1729530210629,0.3608,67345.0,67344.0,0.074279]
[1729530210827,0.435078,67345.0,67344.0,0.074279]
[1729530211938,0.3608,67345.0,67344.0,0.074279]
[1729530212236,0.074274,67348.0,67347.0,0.074272]
[1729530212434,0.3608,67351.0,67350.0,0.074272]
[1729530213142,0.435071,67351.0,67350.0,0.074272]
[1729530213523,0.40289882,67351.0,67350.0,0.074272]
[1729530214029,0.40289882,67351.0,67350.0,0.13311882]
[1729530214227,0.40289882,67351.0,67350.0,0.074272]
[1729530214735,0.40289882,67351.0,67350.0,0.13312437]
[1729530215038,0.40789882,67351.0,67350.0,0.13312437]
[1729530215241,0.40289882,67351.0,67350.0,0.13312437]
[1729530215533,0.40289882,67351.0,67350.0,0.16040377]
[1729530215743,0.39789882,67351.0,67350.0,0.16040377]
[1729530215942,0.40189882,67351.0,67350.0,0.1015514]
[1729530216138,0.40189882,67351.0,67350.0,0.0272794]
[1729530216443,0.07428,67343.0,67342.0,0.074281]
[1729530217633,0.074281,67342.0,67341.0,0.3877796]
[1729530217836,0.074281,67342.0,67341.0,0.0269796]
[1729530218041,0.074281,67342.0,67334.0,0.074289]
[1729530218436,0.074288,67336.0,67334.0,0.074289]
[1729530218628,0.074288,67336.0,67335.0,0.074289]
[1729530219341,0.001,67342.0,67335.0,0.074289]
[1729530219563,0.3608,67344.0,67335.0,0.074289]
[1729530219731,0.001,67336.0,67335.0,0.074289]
[1729530219933,0.002,67336.0,67335.0,0.083289]
[1729530221132,0.001,67336.0,67335.0,0.083289]
[1729530221335,0.002,67336.0,67335.0,0.093289]
[1729530222236,0.001,67336.0,67335.0,0.093289]
[1729530223140,0.002,67336.0,67335.0,0.093289]
[1729530224048,0.074283,67341.0,67337.0,0.074286]
[1729530224246,0.074283,67341.0,67339.0,0.07359059]
[1729530224449,0.074283,67341.0,67337.0,0.074286]
[1729530224450,0.074283,67341.0,67340.0,0.0736039]
[1729530224746,0.074283,67341.0,67340.0,0.18683943]
[1729530224949,0.074283,67341.0,67340.0,0.18683885]
[1729530225341,0.076283,67341.0,67339.0,0.0796039]
[1729530225542,0.074283,67340.0,67339.0,0.006]
[1729530225740,0.074283,67340.0,67339.0,0.1192381]
[1729530225941,0.074283,67340.0,67339.0,0.1132381]
[1729530226841,0.075283,67340.0,67339.0,0.1192381]
[1729530228039,0.075283,67340.0,67339.0,0.011]
[1729530228237,0.520803,67340.0,67339.0,0.011]
[1729530228441,0.44652,67340.0,67337.0,0.05899408]
[1729530228642,0.435085,67338.0,67331.0,0.0736965]
[1729530228938,0.074293,67331.0,67329.0,0.0736965]
[1729530229144,0.074296,67328.0,67327.0,0.0736965]
[1729530229356,0.1445,67330.0,67324.0,0.0736965]
[1729530229653,0.3608,67329.0,67322.0,0.00222813]
[1729530229860,0.435102,67323.0,67322.0,0.00222813]
[1729530230445,0.3608,67323.0,67322.0,0.00222813]
[1729530230652,0.3608,67323.0,67322.0,0.02925358]
[1729530230949,0.3608,67323.0,67322.0,0.00222813]
[1729530232649,0.3618,67323.0,67322.0,0.01322813]
[1729530233057,0.3628,67323.0,67322.0,0.01322813]
[1729530233741,0.3628,67323.0,67322.0,0.011]
[1729530234144,0.3628,67323.0,67322.0,0.03717524]
[1729530234450,0.3628,67323.0,67322.0,0.011]
[1729530234758,0.3628,67323.0,67322.0,0.085303]
[1729530237052,0.3628,67323.0,67322.0,0.11179421]
[1729530240560,0.3628,67323.0,67322.0,0.15595154]
[1729530241350,0.3628,67323.0,67322.0,0.11179421]
[1729530241654,0.3628,67323.0,67322.0,0.1559467]
[1729530243263,0.3628,67323.0,67322.0,0.11179421]
[1729530244555,0.002,67323.0,67322.0,0.11179421]
[1729530245359,0.3608,67324.0,67323.0,0.074302]
[1729530246173,0.12392,67325.0,67324.0,0.074301]
[1729530248159,0.12492,67325.0,67324.0,0.078301]
[1729530249454,0.12492,67325.0,67324.0,0.083301]
[1729530250553,0.001,67325.0,67324.0,0.083301]
[1729530250755,0.12536,67325.0,67324.0,0.083301]
[1729530251956,0.12536,67325.0,67324.0,0.11036343]
[1729530254351,0.93176,67325.0,67324.0,0.009]
[1729530254560,0.074305,67320.0,67314.0,0.074311]
[1729530254766,0.3608,67315.0,67314.0,0.074311]
[1729530255854,0.3608,67315.0,67314.0,0.076311]
[1729530256056,0.41411964,67315.0,67314.0,0.076311]
[1729530256253,0.53847964,67315.0,67314.0,0.075311]
[1729530256473,0.05331928,67315.0,67314.0,0.077311]
[1729530256658,0.12436,67318.0,67314.0,0.003]
[1729530256853,0.12436,67318.0,67317.0,0.074308]
[1729530257359,0.1445,67330.0,67329.0,0.074295]
[1729530257554,0.29547841,67330.0,67329.0,0.074295]
[1729530257765,0.74103841,67330.0,67329.0,0.074295]
[1729530257956,0.79435255,67330.0,67329.0,0.074295]
[1729530258365,0.79435255,67330.0,67328.0,0.074296]
[1729530258559,0.05331414,67329.0,67328.0,0.074296]
[1729530258865,0.43708655,67330.0,67328.0,0.074296]
[1729530259072,0.05331414,67329.0,67328.0,0.074296]
[1729530260363,0.12760914,67329.0,67328.0,0.074296]
[1729530260762,0.12760914,67329.0,67325.0,0.074299]
[1729530260967,0.3608,67326.0,67325.0,0.074299]
[1729530261272,0.41411414,67326.0,67325.0,0.074299]
[1729530262067,0.42211414,67326.0,67325.0,0.075299]
[1729530262772,0.43011414,67326.0,67325.0,0.075299]
[1729530265877,0.3768,67326.0,67325.0,0.075299]
[1729530266084,0.06930895,67326.0,67325.0,0.075299]
[1729530266369,0.06930895,67326.0,67325.0,0.167999]
[1729530266370,0.016,67326.0,67325.0,0.167999]
[1729530266579,0.3608,67339.0,67334.0,0.07429]
[1729530266766,0.04561435,67337.0,67334.0,0.07429]
[1729530266962,0.04561435,67336.0,67335.0,0.074289]
[1729530268364,0.004,67336.0,67335.0,0.074289]
[1729530269580,0.008,67336.0,67335.0,0.074289]
[1729530270468,0.082288,67336.0,67335.0,0.074289]
[1729530271567,0.008,67336.0,67335.0,0.10144341]
[1729530278472,0.082288,67336.0,67335.0,0.10144341]
[1729530280183,0.082288,67336.0,67335.0,0.02715441]
[1729530280372,0.082288,67336.0,67331.0,0.0498]
[1729530280373,0.008,67336.0,67331.0,0.0498]
[1729530280573,0.074289,67335.0,67334.0,0.074289]
[1729530281784,0.077289,67335.0,67334.0,0.074289]
[1729530282479,0.080289,67335.0,67334.0,0.074289]
[1729530286982,0.080289,67335.0,67331.0,0.07672709]
[1729530286983,0.074292,67332.0,67331.0,0.10122009]
[1729530287193,0.080289,67335.0,67334.0,0.07429]
[1729530288393,0.003,67335.0,67334.0,0.07429]
[1729530289291,0.006,67335.0,67334.0,0.07429]
[1729530291283,0.00222839,67338.0,67337.0,0.074286]
[1729530292578,0.00622839,67338.0,67337.0,0.074286]
[1729530293297,0.01022839,67338.0,67337.0,0.074286]
[1729530294897,0.074274,67349.0,67348.0,0.074272]
[1729530295200,0.075032,67351.0,67350.0,0.074272]
[1729530295490,0.3608,67358.0,67353.0,0.074266]
[1729530295491,0.074268,67354.0,67353.0,0.074266]
[1729530296482,0.3608,67358.0,67350.0,0.001]
[1729530296682,0.074265,67357.0,67356.0,0.074264]
[1729530297986,0.080265,67357.0,67356.0,0.075264]
[1729530299301,0.093265,67357.0,67356.0,0.076264]
[1729530302107,0.093265,67357.0,67356.0,0.002]
[1729530302998,0.093265,67357.0,67356.0,0.076265]
[1729530303198,0.019,67357.0,67356.0,0.076265]
[1729530303495,0.45239785,67371.0,67356.0,0.521665]
[1729530303496,0.37814785,67371.0,67356.0,0.521665]
[1729530303800,0.074251,67369.0,67368.0,0.074251]
[1729530306209,0.074251,67369.0,67368.0,0.075251]
[1729530306387,0.0988709,67369.0,67368.0,0.06882591]
[1729530307493,0.15982977,67369.0,67368.0,0.08731006]
[1729530308195,0.06095887,67369.0,67368.0,0.53263006]
[1729530308396,0.25817013,67370.0,67369.0,0.074251]
[1729530308600,0.25817013,67370.0,67369.0,0.519571]
[1729530308793,0.19302453,67370.0,67369.0,0.519571]
[1729530308999,0.01734785,67371.0,67370.0,0.07425]
[1729530309307,0.01734785,67371.0,67370.0,0.51957]
[1729530309907,0.01442353,67374.0,67373.0,0.074247]
[1729530310104,0.01442353,67374.0,67373.0,0.435047]
[1729530310311,0.01442353,67374.0,67373.0,0.880327]
[1729530311890,0.01442353,67374.0,67373.0,0.881327]
[1729530312603,0.01442353,67374.0,67373.0,0.880327]
[1729530312808,0.01442353,67374.0,67373.0,1.005207]
[1729530313313,0.06000434,67374.0,67373.0,1.005207]
[1729530314510,0.01442353,67374.0,67373.0,1.005207]
[1729530314911,0.01575478,67380.0,67374.0,0.074246]
[1729530315207,0.01575478,67380.0,67376.0,0.074243]
[1729530315593,0.01575478,67380.0,67376.0,0.519483]
[1729530315790,0.01575478,67380.0,67376.0,0.607083]
[1729530315998,0.01575478,67380.0,67377.0,0.074242]
[1729530316216,0.00658576,67378.0,67377.0,0.519482]
[1729530316543,0.00658576,67378.0,67377.0,1.119482]
[1729530317328,0.00658576,67378.0,67377.0,0.519482]
[1729530317631,0.00658576,67378.0,67377.0,0.54577413]
[1729530329414,0.00388712,67382.0,67381.0,0.074238]
[1729530329598,0.00388712,67382.0,67381.0,0.54819663]
[1729530330304,0.00388712,67382.0,67381.0,0.6215693]
[1729530330499,0.00388712,67382.0,67381.0,0.54819663]
[1729530331106,0.00388712,67382.0,67381.0,0.508411]
[1729530331308,0.00388712,67382.0,67381.0,0.54819662]
[1729530331607,0.00388712,67382.0,67381.0,0.54919662]
[1729530332005,0.00388712,67382.0,67381.0,0.55019662]
[1729530334215,0.00388712,67382.0,67381.0,0.63857797]
[1729530334913,0.00388712,67382.0,67381.0,0.55019662]
[1729530335309,0.00388712,67382.0,67381.0,0.63857797]
[1729530335914,0.00388712,67382.0,67381.0,0.55019662]
[1729530336312,0.00388712,67382.0,67381.0,0.437038]
[1729530337610,0.00388712,67382.0,67381.0,0.436038]
[1729530338011,0.00388712,67382.0,67381.0,0.435038]
[1729530339420,0.018728,67383.0,67381.0,0.3608]
[1729530339719,0.018728,67383.0,67382.0,0.074237]
[1729530339923,0.06430437,67383.0,67382.0,0.074237]
[1729530341526,0.09134263,67388.0,67382.0,0.001]
[1729530341826,0.03808743,67388.0,67385.0,0.074233]
[1729530342014,0.03808743,67388.0,67386.0,0.074232]
[1729530342611,0.03400729,67387.0,67386.0,0.074232]
[1729530343227,0.03400729,67387.0,67386.0,0.08166838]
[1729530344423,0.03400729,67387.0,67386.0,0.18737974]
[1729530344908,0.03400729,67387.0,67386.0,0.19580544]
[1729530345211,0.03400729,67387.0,67386.0,0.18937974]
[1729530345410,0.03400729,67387.0,67386.0,0.21572178]
[1729530347514,0.03400729,67387.0,67386.0,0.10257404]
[1729530351525,0.03400729,67387.0,67386.0,0.215724]
[1729530352926,0.02700729,67387.0,67386.0,0.30405826]
[1729530353119,0.02515533,67387.0,67386.0,0.215724]
[1729530353319,0.02515533,67387.0,67386.0,0.30400367]
[1729530353617,0.02515533,67387.0,67386.0,0.2230012]
[1729530354623,0.02515533,67387.0,67386.0,0.31127994]
[1729530354927,0.02515533,67387.0,67386.0,0.2230012]
[1729530359527,0.07072797,67387.0,67386.0,0.10985641]
[1729530361020,0.03904178,67387.0,67386.0,0.10985641]
[1729530361823,0.01715921,67388.0,67387.0,0.074231]
[1729530362150,0.074454,67412.0,67387.0,0.074231]
[1729530362151,0.01010598,67392.0,67387.0,0.3608]
[1729530362334,0.00495899,67408.0,67391.0,0.3608]
[1729530362335,0.00294959,67408.0,67391.0,0.3608]
[1729530362534,0.36450197,67430.0,67422.0,0.074193]
[1729530362535,0.05323679,67423.0,67422.0,0.074193]
[1729530362741,0.05111263,67423.0,67422.0,0.196233]
[1729530362918,0.05111263,67423.0,67422.0,0.557033]
[1729530363527,0.05111263,67423.0,67422.0,0.56447727]
[1729530364237,0.00370197,67430.0,67422.0,0.36824427]
[1729530364532,0.00370197,67430.0,67429.0,0.074185]
[1729530364730,0.00370197,67430.0,67429.0,0.434985]
[1729530366222,0.00370197,67430.0,67429.0,0.46183254]
[1729530367330,0.00455857,67442.0,67435.0,0.074178]
[1729530367540,0.3608,67462.0,67446.0,0.074166]
[1729530367723,0.3608,67462.0,67446.0,0.195846]
[1729530368037,0.3608,67462.0,67446.0,0.640646]
[1729530368424,0.00485312,67447.0,67446.0,0.640646]
[1729530368630,0.00485312,67447.0,67446.0,0.518966]
[1729530368837,0.00485312,67447.0,67446.0,0.641606]
[1729530369030,0.00485312,67447.0,67446.0,0.64898431]
[1729530369633,0.00485312,67447.0,67446.0,0.64998431]
[1729530370023,0.00485312,67447.0,67446.0,0.6766478]
[1729530371332,0.00485312,67447.0,67446.0,0.5550078]
[1729530371535,0.0403,67463.0,67446.0,0.6766478]
[1729530371735,0.0403,67463.0,67452.0,0.43496]
[1729530372233,0.0403,67463.0,67452.0,0.79576]
[1729530373335,0.0403,67463.0,67452.0,1.24052]
[1729530374032,0.0403,67463.0,67452.0,1.24152]
[1729530374234,0.0403,67463.0,67452.0,0.3618]
[1729530374434,0.0403,67463.0,67446.0,0.0350418]
[1729530374435,0.07586912,67453.0,67446.0,0.1092068]
[1729530374640,0.0987386,67452.0,67451.0,0.074161]
[1729530375244,0.0987386,67452.0,67451.0,0.42287592]
[1729530375633,0.05319708,67456.0,67452.0,0.44476]
[1729530375832,0.19041859,67457.0,67456.0,0.074155]
[1729530376036,0.25237369,67458.0,67456.0,0.434955]
[1729530376233,0.25237369,67458.0,67457.0,0.518874]
[1729530376535,0.01669163,67458.0,67457.0,0.518874]
[1729530376744,0.00969163,67458.0,67457.0,0.518874]
[1729530376932,0.00969163,67458.0,67457.0,0.52641899]
[1729530376933,0.19999022,67458.0,67457.0,0.52641899]
[1729530377559,0.00969163,67458.0,67457.0,0.52641899]
[1729530378054,0.19029859,67463.0,67462.0,0.074149]
[1729530378248,0.00700833,67464.0,67462.0,0.3608]
[1729530378448,0.00700833,67464.0,67463.0,0.518828]